[Event "Lueneburg Open-B 2019"]
[Site "Lueneburg"]
[Date "2019.08.08"]
[Round "5.13"]
[White "Goldmann, David"]
[Black "Kolhoff, Manfred"]
[Result "1-0"]
[ECO "D51"]
[WhiteElo "1403"]
[BlackElo "1616"]
[Annotator "NA RC"]
[PlyCount "161"]
[EventDate "2019.08.03"]
[EventType "swiss"]
[EventCountry "GER"]
[SourceTitle "playchess.com"]
[Source "ChessBase"]
[SourceQuality "1"]
[TimeControl "40/5400+30:1800+30"]

1. d4 {[%emt 0:00:00]} d5 {[%emt 0:00:00]} 2. c4 {[%emt 0:00:00]} e6 {[%emt 0:04:23]} 3. Nc3 {[%emt 0:08:25]} c6 {[%emt 0:02:18]} 4. Nf3 {[%emt 0:01:13]} Nf6 {[%emt 0:03:00]} 5. Bg5 {[%emt 0:02:02]} Nbd7 {[%emt 0:02:32]} 6. c5 {[%emt 0:02:19]} Be7 {[%emt 0:03:10]} 7. Qc2 {[%emt 0:02:44]} Qc7 {[%emt 0:05:08]} 8. e3 {[%emt 0:01:20]} b6 {[%emt 0:08:57]} 9. Bf4 {[%emt 0:02:04]} Qd8 {[%emt 0:00:16]} 10. Nb5 {[%emt 0:14:48]} cxb5 {[%emt 0:25:47]} 11. c6 {[%emt 0:00:26]} Ba6 {[%emt 0:06:00]} 12. cxd7+ {[%emt 0:01:28]} Qxd7 {[%emt 0:02:02]} 13. Ne5 {[%emt 0:00:30]} Qb7 {[%emt 0:00:39]} 14. a4 {[%emt 0:04:49]} Rc8 {[%emt 0:04:22]} 15. Qd3 {[%emt 0:02:58]} Bb4+ {[%emt 0:02:46]} 16. Kd1 {[%emt 0:00:39]} Ne4 {[%emt 0:00:59]} 17. Bg3 {[%emt 0:01:06]} Qe7 {[%emt 0:02:18]} 18. axb5 {[%emt 0:00:33]} Bb7 {[%emt 0:02:37]} 19. Rxa7 {[%emt 0:00:42]} Nxg3 {[%emt 0:02:00]} 20. fxg3 {[%emt 0:01:34]} Qc7 {[%emt 0:01:06]} 21. Nc6 {[%emt 0:00:10]} Bd6 {[%emt 0:03:04]} 22. Qc3 {[%emt 0:01:32]} Ra8 {[%emt 0:01:12]} 23. Bd3 {[%emt 0:01:32]} Rxa7 {[%emt 0:01:05]} 24. Nxa7 {[%emt 0:00:06]} Qd7 {[%emt 0:01:47]} 25. Nc6 {[%emt 0:00:41]} O-O {[%emt 0:01:37]} 26. Ke2 {[%emt 0:00:46]} Rc8 {[%emt 0:00:13]} 27. Rc1 {[%emt 0:00:10]} f6 {[%emt 0:02:13]} 28. Qd2 {[%emt 0:02:44]} Rc7 {[%emt 0:02:45]} 29. Qc2 {[%emt 0:03:13]} g6 {[%emt 0:00:42]} 30. Qa4 {[%emt 0:00:28]} Kg7 {[%emt 0:02:00]} 31. Rc3 {[%emt 0:00:19]} h5 {[%emt 0:01:10]} 32. Qc2 {[%emt 0:00:33]} e5 {[%emt 0:01:49]} 33. dxe5 {[%emt 0:00:37]} fxe5 {[%emt 0:00:19]} 34. Qd1 {[%emt 0:03:10]} e4 {[%emt 0:00:35]} 35. Bc2 {[%emt 0:00:27]} Qg4+ {[%emt 0:01:58]} 36. Ke1 {[%emt 0:00:53]} Qf5 {[%emt 0:00:40]} 37. Nd4 {[%emt 0:02:01]} Qf6 {[%emt 0:00:23]} 38. Rxc7+ {[%emt 0:01:22]} Bxc7 {[%emt 0:00:02]} 39. Qa1 {[%emt 0:00:39]} Qf7 {[%emt 0:03:08]} 40. Qa7 {[%emt 0:00:19]} g5 {[%emt 0:02:02]} 41. Bb3 {[%emt 0:36:35]} Bc8 {[%emt 0:30:42]} 42. Nc6 {[%emt 0:01:22]} Be6 {[%emt 0:00:00]} 43. Qa4 {[%emt 0:00:00]} Qf6 {[%emt 0:00:00]} 44. Qd4 {[%emt 0:00:00]} Qxd4 {[%emt 0:00:00]} 45. Nxd4 {[%emt 0:00:00]} Bf7 {[%emt 0:00:00]} 46. Nc6 {[%emt 0:00:00]} Kf6 {[%emt 0:00:00]} 47. Kd2 {[%emt 0:00:00]} Ke6 {[%emt 0:00:00]} 48. Kc3 {[%emt 0:00:00]} Be5+ {[%emt 0:00:00]} 49. Kd2 {[%emt 0:00:00]} Bxb2 {[%emt 0:00:00]} 50. Nd8+ {[%emt 0:00:00]} Ke7 {[%emt 0:00:00]} 51. Nxf7 {[%emt 0:00:00]} Kxf7 {[%emt 0:00:00]} 52. Bxd5+ {[%emt 0:00:00]} Kf6 {[%emt 0:00:00]} 53. Bxe4 {[%emt 0:00:00]} Ba3 {[%emt 0:00:00]} 54. Kd3 {[%emt 0:00:00]} Bc5 {[%emt 0:00:00]} 55. Bc6 {[%emt 0:00:00]} Ke5 {[%emt 0:00:00]} 56. Be8 {[%emt 0:00:00]} h4 {[%emt 0:00:00]} 57. gxh4 {[%emt 0:00:00]} gxh4 {[%emt 0:00:00]} 58. Bd7 {[%emt 0:00:00]} Be7 {[%emt 0:00:00]} 59. e4 {[%emt 0:00:00]} Bg5 {[%emt 0:00:00]} 60. g3 {[%emt 0:00:00]} Be7 {[%emt 0:00:00]} 61. Ke3 {[%emt 0:00:00]} Bf6 {[%emt 0:01:13]} 62. Bc6 {[%emt 0:00:00]} Be7 {[%emt 0:00:17]} 63. Kf3 {[%emt 0:00:00]} Bf6 {[%emt 0:02:02]} 64. gxh4 {[%emt 0:00:00]} Bxh4 {[%emt 0:00:11]} 65. Kg4 {[%emt 0:00:00]} Bf6 {[%emt 0:00:40]} 66. Kh5 {[%emt 0:00:00]} Bg7 {[%emt 0:00:36]} 67. h4 {[%emt 0:00:00]} Kf4 {[%emt 0:00:34]} 68. Kg6 {[%emt 0:00:00]} Bh8 {[%emt 0:00:48]} 69. h5 {[%emt 0:00:00]} Be5 {[%emt 0:00:12]} 70. h6 {[%emt 0:00:00]} Bd4 {[%emt 0:00:19]} 71. h7 {[%emt 0:00:00]} Be5 {[%emt 0:00:10]} 72. Kf7 {[%emt 0:00:00]} Kg5 {[%emt 0:00:38]} 73. Kg8 {[%emt 0:00:00]} Kg6 {[%emt 0:02:45]} 74. h8=Q {[%emt 0:00:00]} Bxh8 {[%emt 0:00:06]} 75. Kxh8 {[%emt 0:00:00]} Kf6 {[%emt 0:00:18]} 76. Kh7 {[%emt 0:00:00]} Kf7 {[%emt 0:00:16]} 77. Bd5+ {[%emt 0:00:00]} Kf6 {[%emt 0:00:11]} 78. Kg8 {[%emt 0:00:00]} Ke7 {[%emt 0:01:40]} 79. e5 {[%emt 0:00:00]} Ke8 {[%emt 0:00:25]} 80. Bf7+ {[%emt 0:00:00]} Ke7 {[%emt 0:00:12]} 81. e6 {[%emt 0:00:00]} 1-0

[Event "Lueneburg Open-B 2019"]
[Site "Lueneburg"]
[Date "2019.08.08"]
[Round "5.14"]
[White "Stolzenwald, Karl-Heinz"]
[Black "Rempe, Janne"]
[Result "1/2-1/2"]
[ECO "A00"]
[WhiteElo "1600"]
[BlackElo "1594"]
[Annotator "NA RC"]
[PlyCount "90"]
[EventDate "2019.08.03"]
[EventType "swiss"]
[EventCountry "GER"]
[SourceTitle "playchess.com"]
[Source "ChessBase"]
[SourceQuality "1"]
[TimeControl "40/5400+30:1800+30"]

1. b4 {[%emt 0:00:00]} d6 {[%emt 0:00:00]} 2. Bb2 {[%emt 0:00:00]} Nf6 {[%emt 0:00:00]} 3. Nf3 {[%emt 0:00:00]} Nbd7 {[%emt 0:00:09]} 4. e3 {[%emt 0:00:23]} c6 {[%emt 0:01:51]} 5. d4 {[%emt 0:00:35]} Qc7 {[%emt 0:00:18]} 6. c4 {[%emt 0:00:46]} e5 {[%emt 0:00:27]} 7. a3 {[%emt 0:00:18]} Be7 {[%emt 0:00:56]} 8. Nc3 {[%emt 0:00:16]} O-O {[%emt 0:00:56]} 9. Qc2 {[%emt 0:00:54]} Re8 {[%emt 0:02:00]} 10. Bd3 {[%emt 0:00:40]} Nf8 {[%emt 0:05:21]} 11. dxe5 {[%emt 0:00:34]} dxe5 {[%emt 0:00:35]} 12. Ne4 {[%emt 0:00:14]} Ng6 {[%emt 0:01:40]} 13. O-O {[%emt 0:00:20]} Bg4 {[%emt 0:02:05]} 14. Nfd2 {[%emt 0:01:20]} Rad8 {[%emt 0:03:52]} 15. f3 {[%emt 0:00:31]} Be6 {[%emt 0:11:48]} 16. Nxf6+ {[%emt 0:01:44]} Bxf6 {[%emt 0:01:40]} 17. Ne4 {[%emt 0:01:16]} Be7 {[%emt 0:02:57]} 18. Rad1 {[%emt 0:01:38]} b6 {[%emt 0:03:09]} 19. Qc3 {[%emt 0:00:27]} f5 {[%emt 0:09:07]} 20. Ng3 {[%emt 0:02:14]} Rf8 {[%emt 0:01:11]} 21. f4 {[%emt 0:00:27]} Bf6 {[%emt 0:02:05]} 22. Nh5 {[%emt 0:01:03]} exf4 {[%emt 0:02:59]} 23. Nxf6+ {[%emt 0:00:16]} gxf6 {[%emt 0:01:07]} 24. exf4 {[%emt 0:02:36]} Nxf4 {[%emt 0:01:01]} 25. Qc2 {[%emt 0:01:53]} Nxd3 {[%emt 0:02:37]} 26. Rxd3 {[%emt 0:00:07]} Rxd3 {[%emt 0:02:11]} 27. Qxd3 {[%emt 0:00:11]} b5 {[%emt 0:02:37]} 28. cxb5 {[%emt 0:02:47]} cxb5 {[%emt 0:00:46]} 29. Re1 {[%emt 0:02:08]} Qc6 {[%emt 0:07:20]} 30. Qg3+ {[%emt 0:01:55]} Kh8 {[%emt 0:03:59]} 31. Rc1 {[%emt 0:00:21]} Bc4 {[%emt 0:03:36]} 32. Qf2 {[%emt 0:04:23]} Rg8 {[%emt 0:02:27]} 33. g3 {[%emt 0:01:02]} h5 {[%emt 0:00:52]} 34. Qxf5 {[%emt 0:01:31]} Qb6+ {[%emt 0:05:13]} 35. Qf2 {[%emt 0:01:30]} Qxf2+ {[%emt 0:00:37]} 36. Kxf2 {[%emt 0:00:08]} Rg6 {[%emt 0:00:09]} 37. Re1 {[%emt 0:00:14]} a6 {[%emt 0:02:12]} 38. Re7 {[%emt 0:00:20]} Kg8 {[%emt 0:00:52]} 39. Re8+ {[%emt 0:02:22]} Kf7 {[%emt 0:02:24]} 40. Rc8 {[%emt 0:02:38]} Bd5 {[%emt 0:01:32]} 41. Bc1 {[%emt 0:30:38]} f5 {[%emt 0:33:43]} 42. h4 {[%emt 0:01:48]} Rc6 {[%emt 0:01:29]} 43. Rxc6 {[%emt 0:00:39]} Bxc6 {[%emt 0:00:05]} 44. Ke3 {[%emt 0:00:09]} Ke6 {[%emt 0:00:58]} 45. Kd4 {[%emt 0:00:13]} Kf7 {[%emt 0:03:16]} 1/2-1/2

[Event "Lueneburg Open-B 2019"]
[Site "Lueneburg"]
[Date "2019.08.08"]
[Round "5.15"]
[White "Rennkamp, David"]
[Black "Martin, David"]
[Result "0-1"]
[ECO "C54"]
[WhiteElo "1355"]
[BlackElo "1494"]
[Annotator "NA"]
[PlyCount "76"]
[EventDate "2019.08.03"]
[EventType "swiss"]
[EventCountry "GER"]
[SourceTitle "playchess.com"]
[Source "ChessBase"]
[SourceQuality "1"]
[TimeControl "40/5400+30:1800+30"]

{[%evp 11,76,0,0,0,55,0,63,19,37,-23,-21,-60,-14,-26,-27,-24,4,-31,0,-135,-136,-154,-118,-162,-96,-113,0,-104,-96,-96,-81,-104,-109,-223,0,0,70,-73,-72,-231,18,18,18,18,4,15,7,14,2,-25,31,-195,-217,-191,-211,-348,-305,-585,-613,-760,-746,-905,-864,-29980,-29981,-29992,-29993]} 1. e4 {[%emt 0:00:00]} e5 {[%emt 0:00:00]} 2. Nf3 {[%emt 0:00:00]} Nc6 {[%emt 0:00:00]} 3. Bc4 {[%emt 0:00:00]} Bc5 {[%emt 0:00:00]} 4. d3 {[%emt 0:00:00]} Nf6 {[%emt 0:00:20]} 5. c3 {[%emt 0:00:02]} O-O {[%emt 0:00:47]} 6. b4 {[%emt 0:00:06]} Be7 {[%emt 0:02:18]} 7. O-O {[%emt 0:00:15] C54: Giuoco Piano: 4 c3 Nf6, main lines with 5 d4 and 5 d3} b6 $146 {[%emt 0:03:02]} ({Better is Predecessor:} 7... d5 $11 8. exd5 Nxd5 9. Re1 Bf6 10. a4 Nb6 11. Bb3 Nxb4 12. d4 Nc6 13. a5 Nd7 14. d5 Ncb8 {1-0 (32) Short,N (2683)-Sutovsky,E (2657) London 2013}) 8. Qb3 {[%emt 0:04:38]} (8. Re1 $14) 8... h6 {[%emt 0:05:55]} (8... a5 $1 $11) 9. Bb5 {[%emt 0:05:38] White is slightly better.} (9. a4 {looks sharper.} d6 10. Nbd2 Nh5 11. g3 Bd7 12. d4) 9... Bd6 {[%emt 0:04:14]} 10. Bxc6 {[%emt 0:05:00]} ({White should play} 10. a4 $14) 10... dxc6 $11 {[%emt 0:00:09]} 11. Bb2 {[%emt 0:00:44]} Qe7 {[%emt 0:05:12]} 12. Nbd2 {[%emt 0:01:06]} Be6 {[%emt 0:04:56]} 13. Qc2 {[%emt 0:02:32]} Nd7 {[%emt 0:00:33]} 14. g3 {[%emt 0:04:52]} f5 {[%emt 0:03:30]} 15. Rfe1 {[%emt 0:06:19]} (15. Nh4 $11) 15... f4 $1 $17 {[%emt 0:01:31]} 16. Kg2 {[%emt 0:08:29]} Qf7 {[%emt 0:01:34]} 17. Qd1 $1 $11 {[%emt 0:04:06] keeps the balance.} Qh5 {[%emt 0:03:19]} (17... a5 $19 18. a3 axb4 19. cxb4 c5) 18. Nh4 {[%emt 0:04:28]} Qf7 {[%emt 0:09:00]} (18... Qg5 $17 19. Nhf3 Qg4) 19. a3 {[%emt 0:03:49]} fxg3 {[%emt 0:02:11]} 20. fxg3 {[%emt 0:00:57]} Qf2+ {[%emt 0:00:56]} 21. Kh1 {[%emt 0:00:20]} Bh3 {[%emt 0:08:56]} 22. Qe2 {[%emt 0:03:27] [#]} (22. Re2 $17 {was necessary.} Qf7 23. Re3) 22... g5 $2 {[%emt 0:02:37]} (22... Be7 $1 $19 {[%cal Re7h4]} 23. Ndf3 Qxe2 24. Rxe2 Bg4) 23. Qh5 $1 $11 {[%emt 0:17:14] Black must now prevent Qg6+.} Qf7 {[%emt 0:06:38]} (23... gxh4 $11 24. Qg6+ Kh8 25. Qxh6+ {[%mdl 64] Double Attack} Kg8 26. Qg6+ Kh8 27. Qh6+ {[%mdl 64] Double Attack} Kg8 28. Qg6+ Kh8 29. Qh6+ {[%mdl 64] Double Attack}) 24. Qxf7+ {[%emt 0:05:49]} ({Inferior is} 24. Qxh6 gxh4 25. Rg1 (25. gxh4 $2 Qh7 $17) 25... Qh7 $17) (24. Ng6 $14 {was forced to keep a grip.} Bg2+ 25. Kxg2) 24... Rxf7 $17 {[%emt 0:00:17]} 25. Nhf3 $2 {[%emt 0:00:11]} (25. Nf5 $17 Bxf5 26. exf5) 25... g4 $2 {[%emt 0:01:46]} ({Black should try} 25... Raf8 $19 26. Ng1 {[#]} Rf2 $1 {[%mdl 512]} 27. Nxh3 Rxd2 {[%mdl 64] Double Attack}) 26. Nh4 $11 {[%emt 0:00:52]} Rf2 {[%emt 0:01:14]} 27. Rad1 {[%emt 0:01:52]} b5 {[%emt 0:03:22]} 28. Bc1 {[%emt 0:01:59]} Raf8 {[%emt 0:02:20]} 29. Nf5 {[%emt 0:00:10]} Kh7 {[%emt 0:15:08]} 30. Nf1 {[%emt 0:02:31]} Nb6 {[%emt 0:02:40]} (30... a5 $11) 31. Bxh6 $2 {[%emt 0:02:31]} (31. N1e3 $14 {keeps the upper hand.}) 31... R8xf5 $19 {[%emt 0:00:37] Remove Defender} 32. exf5 {[%emt 0:02:59] Strongly threatening Be3.} Kxh6 {[%emt 0:00:26]} 33. Ne3 {[%emt 0:00:19]} (33. Nd2 {is a better defense.}) 33... Na4 {[%emt 0:00:54] Hoping for ...Nb2.} 34. c4 $2 {[%emt 0:01:18]} (34. Kg1 {might work better.} Ra2 35. Ra1 Rxa1 36. Rxa1) 34... Nb2 {[%emt 0:01:04]} 35. Rb1 {[%emt 0:03:29]} Nxd3 {[%emt 0:02:51]} 36. Red1 {[%emt 0:01:23]} e4 {[%emt 0:00:21]} 37. c5 {[%emt 0:02:47]} Be5 {[%emt 0:00:35]} 38. Rb3 {[%emt 0:00:25]} Bd4 {[%emt 0:00:35] Accuracy: White = 16%, Black = 44%.} 0-1

[Event "Lueneburg Open-B 2019"]
[Site "Lueneburg"]
[Date "2019.08.08"]
[Round "5.16"]
[White "Thomas, Vincent"]
[Black "Vogel, Elisabeth"]
[Result "1-0"]
[ECO "D63"]
[WhiteElo "1975"]
[BlackElo "1277"]
[Annotator "NA RC"]
[PlyCount "85"]
[EventDate "2019.08.03"]
[EventType "swiss"]
[EventCountry "GER"]
[SourceTitle "playchess.com"]
[Source "ChessBase"]
[SourceQuality "1"]
[TimeControl "40/5400+30:1800+30"]

1. d4 {[%emt 0:00:00]} d5 {[%emt 0:00:00]} 2. c4 {[%emt 0:01:06]} e6 {[%emt 0:00:10]} 3. Nf3 {[%emt 0:01:26]} Nf6 {[%emt 0:01:05]} 4. Bg5 {[%emt 0:01:31]} Be7 {[%emt 0:01:15]} 5. Nc3 {[%emt 0:04:15]} b6 {[%emt 0:01:11]} 6. e3 {[%emt 0:01:16]} Bb7 {[%emt 0:00:31]} 7. Be2 {[%emt 0:02:28]} O-O {[%emt 0:01:19]} 8. cxd5 {[%emt 0:02:13]} exd5 {[%emt 0:02:02]} 9. O-O {[%emt 0:01:19]} Nbd7 {[%emt 0:01:41]} 10. Rc1 {[%emt 0:03:23]} a6 {[%emt 0:06:00]} 11. Ne1 {[%emt 0:02:13]} Rc8 {[%emt 0:04:38]} 12. Nd3 {[%emt 0:01:38]} h6 {[%emt 0:00:45]} 13. Bh4 {[%emt 0:01:56]} Ne4 {[%emt 0:03:46]} 14. Bxe7 {[%emt 0:01:07]} Qxe7 {[%emt 0:00:10]} 15. Bf3 {[%emt 0:02:36]} Ndf6 {[%emt 0:01:19]} 16. a3 {[%emt 0:02:29]} Rfe8 {[%emt 0:14:02]} 17. Nf4 {[%emt 0:06:08]} Nxc3 {[%emt 0:07:59]} 18. Rxc3 {[%emt 0:01:39]} Ne4 {[%emt 0:00:19]} 19. Rc2 {[%emt 0:00:57]} c6 {[%emt 0:03:54]} 20. Nd3 {[%emt 0:03:53]} Rc7 {[%emt 0:04:57]} 21. Qc1 {[%emt 0:04:10]} Qd6 {[%emt 0:06:34]} 22. Bg4 {[%emt 0:04:19]} Nf6 {[%emt 0:00:53]} 23. Bh3 {[%emt 0:01:25]} Ree7 {[%emt 0:04:48]} 24. b4 {[%emt 0:02:12]} Bc8 {[%emt 0:08:06]} 25. Bxc8 {[%emt 0:00:41]} Rxc8 {[%emt 0:00:05]} 26. a4 {[%emt 0:02:18]} Rec7 {[%emt 0:00:52]} 27. Qb1 {[%emt 0:01:54]} Nd7 {[%emt 0:02:09]} 28. Rfc1 {[%emt 0:01:18]} f6 {[%emt 0:02:17]} 29. h3 {[%emt 0:05:13]} Kf7 {[%emt 0:00:26]} 30. Rc3 {[%emt 0:00:11]} g6 {[%emt 0:01:26]} 31. Qc2 {[%emt 0:07:15]} h5 {[%emt 0:05:15]} 32. Qb1 {[%emt 0:03:29]} Kg7 {[%emt 0:01:28]} 33. R1c2 {[%emt 0:00:05]} Kf7 {[%emt 0:04:02]} 34. Qc1 {[%emt 0:00:16]} Kg7 {[%emt 0:00:39]} 35. b5 {[%emt 0:00:24]} axb5 {[%emt 0:00:21]} 36. axb5 {[%emt 0:00:06]} c5 {[%emt 0:00:28]} 37. dxc5 {[%emt 0:00:19]} Nxc5 {[%emt 0:01:00]} 38. Nxc5 {[%emt 0:00:08]} Rxc5 {[%emt 0:02:35]} 39. Rxc5 {[%emt 0:00:06]} Rxc5 {[%emt 0:00:20]} 40. Qa3 {[%emt 0:01:40]} Kf7 {[%emt 0:09:13]} 41. Rxc5 {[%emt 0:59:28]} bxc5 {[%emt 0:22:53]} 42. Qa7+ {[%emt 0:00:00]} Ke8 {[%emt 0:00:55]} 43. b6 {[%emt 0:00:00]} 1-0

[Event "Lueneburg Open-B 2019"]
[Site "Lueneburg"]
[Date "2019.08.08"]
[Round "5.19"]
[White "Schulze, Tim"]
[Black "Buchinger, Alexis"]
[Result "1-0"]
[ECO "E04"]
[WhiteElo "1481"]
[BlackElo "1346"]
[Annotator "NA RC"]
[PlyCount "67"]
[EventDate "2019.08.03"]
[EventType "swiss"]
[EventCountry "GER"]
[SourceTitle "playchess.com"]
[Source "ChessBase"]
[SourceQuality "1"]
[TimeControl "40/5400+30:1800+30"]

1. d4 {[%emt 0:00:00]} d5 {[%emt 0:00:00]} 2. Nf3 {[%emt 0:00:00]} Nf6 {[%emt 0:00:00]} 3. g3 {[%emt 0:00:00]} c5 {[%emt 0:00:16]} 4. Bg2 {[%emt 0:00:03]} e6 {[%emt 0:00:20]} 5. O-O {[%emt 0:00:06]} Nc6 {[%emt 0:00:26]} 6. c4 {[%emt 0:01:23]} dxc4 {[%emt 0:01:03]} 7. dxc5 {[%emt 0:00:45]} Qxd1 {[%emt 0:00:32]} 8. Rxd1 {[%emt 0:00:06]} Bxc5 {[%emt 0:00:12]} 9. Nfd2 {[%emt 0:00:39]} Nd4 {[%emt 0:01:26]} 10. Nc3 {[%emt 0:00:47]} b5 {[%emt 0:00:36]} 11. Bxa8 {[%emt 0:00:12]} O-O {[%emt 0:00:12]} 12. Nf3 {[%emt 0:00:48]} Nc2 {[%emt 0:01:12]} 13. Rb1 {[%emt 0:00:34]} Ba6 {[%emt 0:00:30]} 14. Be4 {[%emt 1:31:37]} Nb4 {[%emt 0:01:37]} 15. a3 {[%emt 0:00:00]} Nxe4 {[%emt 0:00:17]} 16. Nxe4 {[%emt 0:00:00]} c3 {[%emt 0:01:23]} 17. bxc3 {[%emt 0:00:00]} Nc2 {[%emt 0:00:25]} 18. Nxc5 {[%emt 0:00:00]} b4 {[%emt 0:00:09]} 19. axb4 {[%emt 0:00:00]} Bxe2 {[%emt 0:00:20]} 20. Rd2 {[%emt 0:00:00]} Bxf3 {[%emt 0:00:09]} 21. Rxc2 {[%emt 0:03:30]} Rd8 22. Rd2 {[%emt 0:00:00]} Rd5 {[%emt 0:00:32]} 23. Rxd5 {[%emt 0:00:00]} exd5 {[%emt 0:00:07]} 24. Be3 {[%emt 0:01:30]} Be4 {[%emt 0:00:14]} 25. Nxe4 {[%emt 0:00:00]} dxe4 {[%emt 0:00:10]} 26. Rd1 {[%emt 0:00:00]} g6 {[%emt 0:00:13]} 27. Bh6 {[%emt 0:00:00]} f5 {[%emt 0:00:09]} 28. c4 {[%emt 0:00:00]} Kf7 {[%emt 1:31:30]} 29. c5 {[%emt 0:00:00]} Ke7 {[%emt 0:00:00]} 30. c6 {[%emt 0:00:00]} Ke6 {[%emt 0:00:00]} 31. c7 {[%emt 0:00:00]} Ke5 {[%emt 0:01:30]} 32. c8=Q {[%emt 0:00:00]} a5 {[%emt 0:00:00]} 33. Bf4+ {[%emt 0:00:00]} Kf6 {[%emt 0:00:00]} 34. Qd8+ {[%emt 0:00:00]} 1-0

[Event "Lueneburg Open-B 2019"]
[Site "Lueneburg"]
[Date "2019.08.08"]
[Round "5.20"]
[White "Rothenberg, Anke"]
[Black "Hinke, Gerhard"]
[Result "1-0"]
[ECO "D05"]
[WhiteElo "1467"]
[BlackElo "1476"]
[Annotator "NA RC"]
[PlyCount "81"]
[EventDate "2019.08.03"]
[EventType "swiss"]
[EventCountry "GER"]
[SourceTitle "playchess.com"]
[Source "ChessBase"]
[SourceQuality "1"]
[TimeControl "40/5400+30:1800+30"]

1. d4 {[%emt 0:00:00]} d5 {[%emt 0:00:00]} 2. Nf3 {[%emt 0:00:00]} Nf6 {[%emt 0:00:12]} 3. e3 {[%emt 1:31:30]} e6 {[%emt 1:31:18]} 4. Bd3 {[%emt 0:00:00]} c5 {[%emt 0:00:00]} 5. c3 {[%emt 0:00:00]} Nc6 {[%emt 0:00:00]} 6. Nbd2 {[%emt 0:00:00]} Bd7 {[%emt 0:00:00]} 7. O-O {[%emt 0:00:00]} Rc8 {[%emt 0:00:00]} 8. dxc5 {[%emt 0:00:00]} Bxc5 {[%emt 0:00:00]} 9. e4 {[%emt 0:00:00]} dxe4 {[%emt 0:00:00]} 10. Nxe4 {[%emt 0:00:00]} Be7 {[%emt 0:00:00]} 11. Nxf6+ {[%emt 0:00:00]} Bxf6 {[%emt 0:00:00]} 12. Be3 {[%emt 0:00:00]} h6 {[%emt 0:00:00]} 13. Qb3 {[%emt 0:00:00]} Na5 {[%emt 0:00:00]} 14. Qc2 {[%emt 0:00:00]} Nc6 {[%emt 0:00:00]} 15. Rad1 {[%emt 0:00:00]} a6 {[%emt 0:00:00]} 16. Rfe1 {[%emt 0:00:00]} O-O {[%emt 0:00:00]} 17. Qe2 {[%emt 0:00:00]} Qa5 {[%emt 0:00:00]} 18. Bc2 {[%emt 0:00:00]} Be8 {[%emt 0:00:00]} 19. Qd3 {[%emt 0:08:00]} Qf5 {[%emt 0:08:00]} 20. Qxf5 {[%emt 0:00:00]} exf5 {[%emt 0:00:00]} 21. Bxf5 {[%emt 0:00:00]} Rd8 {[%emt 0:00:00]} 22. Rxd8 {[%emt 0:00:00]} Bxd8 {[%emt 0:00:00]} 23. Bc5 {[%emt 0:00:00]} g6 {[%emt 0:00:00]} 24. Bc8 {[%emt 0:00:00]} b6 {[%emt 0:00:00]} 25. Bxf8 {[%emt 0:00:00]} Kxf8 {[%emt 0:00:00]} 26. Bxa6 {[%emt 0:00:00]} Ne7 {[%emt 0:00:00]} 27. Nd4 {[%emt 0:00:00]} Bd7 {[%emt 0:00:00]} 28. Bb5 {[%emt 0:00:00]} Bxb5 {[%emt 0:00:00]} 29. Nxb5 {[%emt 0:00:00]} Ng8 {[%emt 0:00:00]} 30. Nd4 {[%emt 0:00:00]} Nf6 {[%emt 0:00:00]} 31. Rd1 {[%emt 0:00:00]} Bc7 {[%emt 0:00:00]} 32. Nb5 {[%emt 0:00:00]} Be5 {[%emt 0:00:00]} 33. Rd3 {[%emt 0:00:00]} Kg7 {[%emt 0:00:00]} 34. c4 {[%emt 0:00:00]} Bxb2 {[%emt 0:00:00]} 35. Rd6 {[%emt 0:00:00]} Ne4 {[%emt 0:00:00]} 36. Rxb6 {[%emt 0:00:00]} Nc5 {[%emt 0:00:00]} 37. Nd6 {[%emt 0:00:00]} Be5 {[%emt 0:00:00]} 38. Nb7 {[%emt 0:00:00]} Nd3 {[%emt 0:00:00]} 39. Rb5 {[%emt 0:00:00]} Ba1 {[%emt 0:00:00]} 40. c5 {[%emt 0:00:00]} Bd4 {[%emt 0:00:00]} 41. c6 {[%emt 0:21:51]} 1-0

[Event "Lueneburg Open-B 2019"]
[Site "Lueneburg"]
[Date "2019.08.08"]
[Round "5.21"]
[White "Rempe, Mieke"]
[Black "Krueger, Dietrich"]
[Result "1-0"]
[ECO "C70"]
[WhiteElo "1558"]
[BlackElo "1243"]
[Annotator "NA RC"]
[PlyCount "71"]
[EventDate "2019.08.03"]
[EventType "swiss"]
[EventCountry "GER"]
[SourceTitle "playchess.com"]
[Source "ChessBase"]
[SourceQuality "1"]
[TimeControl "40/5400+30:1800+30"]

1. e4 {[%emt 0:00:00]} Nc6 {[%emt 0:02:55]} 2. Nf3 {[%emt 0:00:22]} e5 {[%emt 0:00:22]} 3. Bb5 {[%emt 0:00:26]} a6 {[%emt 0:00:19]} 4. Ba4 {[%emt 0:00:05]} Bc5 {[%emt 0:00:42]} 5. O-O {[%emt 0:01:38]} d6 {[%emt 0:00:19]} 6. Nc3 {[%emt 0:02:24]} Bg4 {[%emt 0:00:53]} 7. Bxc6+ {[%emt 0:01:01]} bxc6 {[%emt 0:00:29]} 8. h3 {[%emt 0:03:43]} Bh5 {[%emt 0:00:43]} 9. g4 {[%emt 0:08:01]} Bg6 {[%emt 0:00:27]} 10. d4 {[%emt 0:00:52]} Bb6 {[%emt 0:02:41]} 11. dxe5 {[%emt 0:03:19]} h5 {[%emt 0:01:23]} 12. g5 {[%emt 0:15:47]} Qd7 {[%emt 0:00:19]} 13. Kh2 {[%emt 0:00:49]} f6 {[%emt 0:00:34]} 14. Nh4 {[%emt 0:06:46]} Bf7 {[%emt 0:02:04]} 15. exd6 {[%emt 0:16:35]} Be6 {[%emt 0:03:09]} 16. Ng6 {[%emt 0:05:21]} Rh7 {[%emt 0:03:50]} 17. Qd3 {[%emt 0:05:33]} Bc5 {[%emt 0:00:40]} 18. dxc7 {[%emt 0:06:21]} Bd6+ {[%emt 0:00:25]} 19. Bf4 {[%emt 0:02:41]} Bxf4+ {[%emt 0:03:13]} 20. Nxf4 {[%emt 0:00:23]} Qxd3 {[%emt 0:02:36]} 21. cxd3 {[%emt 0:00:57]} Bc8 {[%emt 0:01:39]} 22. g6 {[%emt 0:05:58]} Rh6 {[%emt 0:01:05]} 23. Nce2 {[%emt 0:02:18]} Ne7 {[%emt 0:00:24]} 24. Rg1 {[%emt 0:01:25]} Ra7 {[%emt 0:00:45]} 25. Nd4 {[%emt 0:00:29]} Rxc7 {[%emt 0:02:25]} 26. Nde6 {[%emt 0:01:40]} Bxe6 {[%emt 0:01:49]} 27. Nxe6 {[%emt 0:00:11]} Rb7 {[%emt 0:00:41]} 28. Nxg7+ {[%emt 0:00:15]} Kf8 {[%emt 0:02:13]} 29. Ne6+ {[%emt 0:02:45]} Kg8 {[%emt 0:00:32]} 30. Nf4 {[%emt 0:00:41]} Rxb2 {[%emt 0:00:49]} 31. Rab1 {[%emt 0:00:35]} Rxf2+ {[%emt 0:01:32]} 32. Kg3 {[%emt 0:00:02]} Rxf4 {[%emt 0:03:18]} 33. Kxf4 {[%emt 0:00:46]} Nxg6+ {[%emt 0:00:42]} 34. Kf5 {[%emt 0:00:08]} Kf7 {[%emt 0:02:47]} 35. Rxg6 {[%emt 0:00:13]} Rxg6 {[%emt 0:01:32]} 36. Rb7+ {[%emt 0:00:02]} 1-0